[Event "2026 European Womens Championship"]
[Site "Batumi, GE"]
[Date "2026.06.03"]
[Round "9"]
[White "Aydin, Gulenay"]
[Black "Gvetadze, Sofio"]
[Result "1/2-1/2"]
[Board "31"]
[TimeControl "5400+30"]
[WhiteFideId "34557431"]
[BlackFideId "13601440"]
[WhiteElo "2204"]
[BlackElo "2311"]
[WhiteTitle "WIM"]
[BlackTitle "IM"]
[WhiteClock "0:00:40"]
[BlackClock "0:27:01"]
[Variant "Standard"]

1. e4 {[%clk 1:29:02]}  g6 {[%clk 1:30:54]} 2. d4 {[%clk 1:28:51]}  Bg7 {[%clk 1:31:17]} 3. Nf3 {[%clk 1:29:15]}  c6 {[%clk 1:31:37]}
4. Nc3 {[%clk 1:29:01]}  d6 {[%clk 1:31:24]} 5. Be3 {[%clk 1:28:09]}  Nf6 {[%clk 1:31:34]} 6. Qd2 {[%clk 1:27:30]}  b5 {[%clk 1:29:51]}
7. Bd3 {[%clk 1:26:21]}  Nbd7 {[%clk 1:26:19]} 8. Bh6 {[%clk 1:24:49]}  O-O {[%clk 1:21:52]} 9. Bxg7 {[%clk 1:06:05]}  Kxg7 {[%clk 1:22:03]}
10. O-O {[%clk 0:47:07]}  e5 {[%clk 1:20:52]} 11. dxe5 {[%clk 0:44:10]}  dxe5 {[%clk 1:20:59]} 12. a4 {[%clk 0:43:23]}  b4 {[%clk 1:20:04]}
13. Ne2 {[%clk 0:42:02]}  a5 {[%clk 1:14:39]} 14. Ng3 {[%clk 0:42:20]}  h6 {[%clk 1:13:49]} 15. Qe3 {[%clk 0:37:45]}  Qe7 {[%clk 1:11:59]}
16. h3 {[%clk 0:35:09]}  Nc5 {[%clk 1:11:23]} 17. Bc4 {[%clk 0:35:36]}  Nfd7 {[%clk 1:09:03]} 18. b3 {[%clk 0:31:57]}  Nb6 {[%clk 0:57:57]}
19. Be2 {[%clk 0:32:06]}  Kh7 {[%clk 0:49:57]} 20. Rad1 {[%clk 0:30:17]}  f6 {[%clk 0:41:04]} 21. Rd2 {[%clk 0:28:58]}  Be6 {[%clk 0:40:50]}
22. Rfd1 {[%clk 0:29:26]}  Nc8 {[%clk 0:39:23]} 23. Nh4 {[%clk 0:19:01]}  Qa7 {[%clk 0:28:07]} 24. Bg4 {[%clk 0:17:58]}  Bxg4 {[%clk 0:27:55]}
25. hxg4 {[%clk 0:18:23]}  Ne7 {[%clk 0:28:06]} 26. Rd6 {[%clk 0:15:05]}  Rf7 {[%clk 0:27:57]} 27. Kh2 {[%clk 0:13:12]}  Rh8 {[%clk 0:27:12]}
28. Kg1 {[%clk 0:11:19]}  Rhf8 {[%clk 0:26:15]} 29. Nf3 {[%clk 0:06:23]}  Rc8 {[%clk 0:22:18]} 30. Nd2 {[%clk 0:06:24]}  Rc7 {[%clk 0:22:15]}
31. Nc4 {[%clk 0:06:44]}  Nc8 {[%clk 0:22:31]} 32. Rd8 {[%clk 0:06:43]}  Ne6 {[%clk 0:22:31]} 33. Qxa7 {[%clk 0:04:04]}  Nxa7 {[%clk 0:22:59]}
34. R8d2 {[%clk 0:02:33]}  Nd4 {[%clk 0:22:56]} 35. Nxa5 {[%clk 0:02:10]}  c5 {[%clk 0:23:22]} 36. Nf1 {[%clk 0:00:59]}  Nac6 {[%clk 0:21:40]}
37. Nxc6 {[%clk 0:01:04]}  Rxc6 {[%clk 0:22:05]} 38. Ne3 {[%clk 0:01:29]}  Kg7 {[%clk 0:22:16]} 39. f3 {[%clk 0:01:40]}  Ra7 {[%clk 0:22:16]}
40. Kf2 {[%clk 0:01:51]}  Ra8 {[%clk 0:22:02]} 41. Nc4 {[%clk 0:26:17]}  Re8 {[%clk 0:50:30]} 42. g3 {[%clk 0:22:46]}  Ra6 {[%clk 0:49:33]}
43. Rh1 {[%clk 0:21:47]}  Rc6 {[%clk 0:48:22]} 44. Ke3 {[%clk 0:17:20]}  Rce6 {[%clk 0:46:47]} 45. Rdh2 {[%clk 0:13:09]}  Rh8 {[%clk 0:46:09]}
46. a5 {[%clk 0:08:28]}  f5 {[%clk 0:36:39]} 47. Ra1 {[%clk 0:05:44]}  fxg4 {[%clk 0:36:22]} 48. fxg4 {[%clk 0:06:13]}  Ra8 {[%clk 0:34:29]}
49. Rf2 {[%clk 0:05:47]}  Ra7 {[%clk 0:33:37]} 50. Raf1 {[%clk 0:04:45]}  Ree7 {[%clk 0:32:02]} 51. Kd2 {[%clk 0:03:33]}  Red7 {[%clk 0:31:05]}
52. Ke3 {[%clk 0:01:53]}  Re7 {[%clk 0:31:04]} 53. Ra1 {[%clk 0:01:10]}  Ra6 {[%clk 0:31:01]} 54. Kd3 {[%clk 0:01:08]}  Nc6 {[%clk 0:30:50]}
55. Ke3 {[%clk 0:00:50]}  Nd4 {[%clk 0:31:02]} 56. Rh1 {[%clk 0:00:34]}  Nc6 {[%clk 0:27:57]} 57. Ra1 {[%clk 0:00:36]}  Nd4 {[%clk 0:27:57]}
58. Rh1 {[%clk 0:00:40]}  Nc6 {[%clk 0:28:21]} 59. Ra1 {[%clk 0:00:47]}  Nd4 {[%clk 0:28:39]} 60. Kd3 {[%clk 0:00:42]}  Nc6 {[%clk 0:27:01]}
61. Ke3 {[%clk 0:00:40]} 1/2-1/2

[Event "2026 European Womens Championship"]
[Site "Batumi, GE"]
[Date "2026.06.03"]
[Round "9"]
[White "Krasteva, Beloslava"]
[Black "Calzetta Ruiz, Monica"]
[Result "1-0"]
[Board "32"]
[TimeControl "5400+30"]
[WhiteFideId "2922029"]
[BlackFideId "2204185"]
[WhiteElo "2285"]
[BlackElo "2199"]
[WhiteTitle "WGM"]
[BlackTitle "WGM"]
[WhiteClock "0:21:52"]
[BlackClock "0:24:25"]
[Variant "Standard"]

1. Nf3 {[%clk 1:30:47]}  d5 {[%clk 1:30:48]} 2. g3 {[%clk 1:30:59]}  c5 {[%clk 1:31:02]} 3. Bg2 {[%clk 1:31:19]}  Nc6 {[%clk 1:31:21]}
4. O-O {[%clk 1:30:49]}  Nf6 {[%clk 1:31:41]} 5. d3 {[%clk 1:31:09]}  Bg4 {[%clk 1:31:59]} 6. h3 {[%clk 1:25:29]}  Bh5 {[%clk 1:31:34]}
7. g4 {[%clk 1:22:50]}  Bg6 {[%clk 1:31:58]} 8. Nh4 {[%clk 1:23:12]}  e6 {[%clk 1:32:22]} 9. Nd2 {[%clk 1:16:08]}  Be7 {[%clk 1:29:19]}
10. Ndf3 {[%clk 1:13:54]}  Nd7 {[%clk 1:16:50]} 11. Nxg6 {[%clk 1:13:14]}  hxg6 {[%clk 1:17:13]} 12. c4 {[%clk 1:12:34]}  d4 {[%clk 1:12:52]}
13. e3 {[%clk 1:07:23]}  Qc7 {[%clk 1:05:47]} 14. exd4 {[%clk 0:43:40]}  cxd4 {[%clk 1:01:53]} 15. a3 {[%clk 0:43:21]}  a5 {[%clk 0:57:42]}
16. b3 {[%clk 0:42:45]}  O-O {[%clk 0:52:13]} 17. Rb1 {[%clk 0:42:25]}  Rfd8 {[%clk 0:42:08]} 18. Qd2 {[%clk 0:39:26]}  Qb6 {[%clk 0:21:01]}
19. Re1 {[%clk 0:30:29]}  Nc5 {[%clk 0:15:34]} 20. Qc2 {[%clk 0:26:47]}  Na6 {[%clk 0:11:56]} 21. Bg5 {[%clk 0:18:37]}  f6 {[%clk 0:08:22]}
22. Bc1 {[%clk 0:17:55]}  Nc7 {[%clk 0:07:54]} 23. Nh4 {[%clk 0:16:16]}  g5 {[%clk 0:07:42]} 24. Nf3 {[%clk 0:13:19]}  Bc5 {[%clk 0:07:29]}
25. Qe2 {[%clk 0:11:27]}  e5 {[%clk 0:05:22]} 26. h4 {[%clk 0:09:57]}  gxh4 {[%clk 0:05:24]} 27. g5 {[%clk 0:08:39]}  e4 {[%clk 0:05:20]}
28. Qxe4 {[%clk 0:08:14]}  Re8 {[%clk 0:05:46]} 29. Qxh4 {[%clk 0:07:33]}  Rxe1+ {[%clk 0:06:12]} 30. Nxe1 {[%clk 0:07:57]}  Re8 {[%clk 0:03:56]}
31. Nf3 {[%clk 0:05:18]}  Ne5 {[%clk 0:04:19]} 32. Nxe5 {[%clk 0:04:32]}  Rxe5 {[%clk 0:04:47]} 33. Be4 {[%clk 0:02:50]}  f5 {[%clk 0:03:44]}
34. Bf4 {[%clk 0:03:09]}  fxe4 {[%clk 0:03:40]} 35. Bxe5 {[%clk 0:03:27]}  exd3 {[%clk 0:03:37]} 36. Qh3 {[%clk 0:01:04]}  d2 {[%clk 0:02:36]}
37. Rd1 {[%clk 0:00:39]}  Ne6 {[%clk 0:02:33]} 38. Qg4 {[%clk 0:00:35]}  Bxa3 {[%clk 0:01:14]} 39. Rxd2 {[%clk 0:00:46]}  Bc1 {[%clk 0:01:32]}
40. Rd3 {[%clk 0:00:38]}  a4 {[%clk 0:00:37]} 41. g6 {[%clk 0:24:02]}  a3 {[%clk 0:24:25]} 42. Qf5 {[%clk 0:21:52]} 1-0

[Event "2026 European Womens Championship"]
[Site "Batumi, GE"]
[Date "2026.06.03"]
[Round "9"]
[White "Mirzoeva, Elmira"]
[Black "Deak-Sala, Emilia"]
[Result "0-1"]
[Board "33"]
[TimeControl "5400+30"]
[WhiteFideId "4127951"]
[BlackFideId "795615"]
[WhiteElo "2265"]
[BlackElo "2086"]
[WhiteTitle "WGM"]
[BlackTitle "WFM"]
[WhiteClock "0:12:06"]
[BlackClock "0:06:06"]
[Variant "Standard"]

1. e4 {[%clk 1:30:56]}  c5 {[%clk 1:30:57]} 2. Nc3 {[%clk 1:31:16]}  Nc6 {[%clk 1:31:16]} 3. f4 {[%clk 1:31:29]}  g6 {[%clk 1:31:33]}
4. Nf3 {[%clk 1:31:41]}  Bg7 {[%clk 1:31:56]} 5. a4 {[%clk 1:31:57]}  e6 {[%clk 1:27:52]} 6. e5 {[%clk 1:31:48]}  d6 {[%clk 1:25:09]}
7. Bb5 {[%clk 1:31:44]}  Nge7 {[%clk 1:10:46]} 8. Ne4 {[%clk 1:31:43]}  dxe5 {[%clk 1:11:10]} 9. fxe5 {[%clk 1:32:02]}  O-O {[%clk 1:11:14]}
10. Nf6+ {[%clk 1:31:46]}  Kh8 {[%clk 1:09:51]} 11. d4 {[%clk 1:30:35]}  Nxd4 {[%clk 0:53:56]} 12. c3 {[%clk 1:29:44]}  Nxb5 {[%clk 0:49:49]}
13. Qxd8 {[%clk 1:29:30]}  Rxd8 {[%clk 0:50:15]} 14. Ng5 {[%clk 1:29:23]}  Rf8 {[%clk 0:49:24]} 15. axb5 {[%clk 1:28:29]}  Bxf6 {[%clk 0:47:29]}
16. exf6 {[%clk 1:27:06]}  Nd5 {[%clk 0:46:28]} 17. Ne4 {[%clk 1:15:13]}  b6 {[%clk 0:36:05]} 18. Bh6 {[%clk 1:02:04]}  Rd8 {[%clk 0:35:53]}
19. h4 {[%clk 1:02:03]}  e5 {[%clk 0:33:16]} 20. h5 {[%clk 0:41:09]}  Bf5 {[%clk 0:30:32]} 21. Ng5 {[%clk 0:33:04]}  Kg8 {[%clk 0:30:24]}
22. g4 {[%clk 0:28:14]}  Bd3 {[%clk 0:29:01]} 23. Bg7 {[%clk 0:26:05]}  Ne3 {[%clk 0:25:14]} 24. hxg6 {[%clk 0:20:13]}  Bxg6 {[%clk 0:25:33]}
25. Ke2 {[%clk 0:19:06]}  Nd5 {[%clk 0:23:44]} 26. Rhd1 {[%clk 0:12:35]}  c4 {[%clk 0:21:25]} 27. Kf2 {[%clk 0:12:25]}  e4 {[%clk 0:11:30]}
28. Rd4 {[%clk 0:09:55]}  Nc7 {[%clk 0:07:54]} 29. Rxd8+ {[%clk 0:01:25]}  Rxd8 {[%clk 0:08:19]} 30. Rxa7 {[%clk 0:01:49]}  Ne8 {[%clk 0:07:27]}
31. Rb7 {[%clk 0:00:56]}  Nxg7 {[%clk 0:07:10]} 32. fxg7 {[%clk 0:01:25]}  Rd5 {[%clk 0:05:28]} 33. Nh3 {[%clk 0:01:09]}  Rxb5 {[%clk 0:05:43]}
34. Nf4 {[%clk 0:01:13]}  Rxb2+ {[%clk 0:06:07]} 35. Ke3 {[%clk 0:01:40]}  Kxg7 {[%clk 0:05:26]} 36. g5 {[%clk 0:01:56]}  Bf5 {[%clk 0:03:11]}
37. Rb8 {[%clk 0:01:26]}  b5 {[%clk 0:02:03]} 38. Nd5 {[%clk 0:01:21]}  h6 {[%clk 0:01:02]} 39. Ne7 {[%clk 0:00:39]}  Bh7 {[%clk 0:00:50]}
40. gxh6+ {[%clk 0:00:34]}  Kxh6 {[%clk 0:01:13]} 41. Nd5 {[%clk 0:30:01]}  Kg5 {[%clk 0:23:18]} 42. Rh8 {[%clk 0:22:50]}  Bg6 {[%clk 0:22:42]}
43. Rh1 {[%clk 0:20:32]}  Rg2 {[%clk 0:15:32]} 44. Rb1 {[%clk 0:18:57]}  f5 {[%clk 0:11:52]} 45. Rxb5 {[%clk 0:18:55]}  Rg3+ {[%clk 0:09:00]}
46. Kd4 {[%clk 0:18:18]}  Rd3+ {[%clk 0:09:12]} 47. Ke5 {[%clk 0:17:52]}  e3 {[%clk 0:07:03]} 48. Rb1 {[%clk 0:17:47]}  Bh5 {[%clk 0:05:50]}
49. Nf4 {[%clk 0:16:28]}  Rd1 {[%clk 0:03:20]} 50. Ne6 {[%clk 0:09:39]}  Kh4 {[%clk 0:02:57]} 51. Rxd1 {[%clk 0:08:53]}  Bxd1 {[%clk 0:03:21]}
52. Kxf5 {[%clk 0:09:01]}  e2 {[%clk 0:03:04]} 53. Nf4 {[%clk 0:09:20]}  Kg3 {[%clk 0:03:26]} 54. Nxe2+ {[%clk 0:09:33]}  Bxe2 {[%clk 0:03:53]}
55. Ke4 {[%clk 0:10:02]}  Bd3+ {[%clk 0:04:13]} 56. Ke3 {[%clk 0:10:27]}  Kg2 {[%clk 0:04:30]} 57. Kd2 {[%clk 0:10:50]}  Kf2 {[%clk 0:04:57]}
58. Kd1 {[%clk 0:11:16]}  Be4 {[%clk 0:05:13]} 59. Kd2 {[%clk 0:11:41]}  Bf3 {[%clk 0:05:39]} 60. Kc2 {[%clk 0:12:06]}  Ke2 {[%clk 0:06:06]} 0-1

[Event "2026 European Womens Championship"]
[Site "Batumi, GE"]
[Date "2026.06.03"]
[Round "9"]
[White "Skarbarchuk, Tetyana"]
[Black "Venskaya, Nika"]
[Result "1/2-1/2"]
[Board "34"]
[TimeControl "5400+30"]
[WhiteFideId "14184494"]
[BlackFideId "13523503"]
[WhiteElo "2236"]
[BlackElo "1937"]
[BlackTitle "WCM"]
[WhiteClock "0:01:02"]
[BlackClock "0:08:09"]
[Variant "Standard"]

1. c4 {[%clk 1:30:23]}  c5 {[%clk 1:30:30]} 2. Nc3 {[%clk 1:30:33]}  Nc6 {[%clk 1:30:52]} 3. g3 {[%clk 1:30:17]}  g6 {[%clk 1:30:42]}
4. Bg2 {[%clk 1:30:12]}  Bg7 {[%clk 1:31:07]} 5. Nf3 {[%clk 1:30:08]}  e6 {[%clk 1:28:16]} 6. e3 {[%clk 1:30:15]}  Nge7 {[%clk 1:27:58]}
7. d4 {[%clk 1:30:33]}  cxd4 {[%clk 1:27:45]} 8. Nxd4 {[%clk 1:30:56]}  Nxd4 {[%clk 1:25:32]} 9. exd4 {[%clk 1:31:19]}  d5 {[%clk 1:25:06]}
10. cxd5 {[%clk 1:30:36]}  Nxd5 {[%clk 1:24:09]} 11. O-O {[%clk 1:18:48]}  O-O {[%clk 1:22:52]} 12. Qb3 {[%clk 0:52:28]}  Bxd4 {[%clk 0:57:22]}
13. Nxd5 {[%clk 0:45:28]}  exd5 {[%clk 0:56:40]} 14. Bh6 {[%clk 0:45:51]}  Bg7 {[%clk 0:55:31]} 15. Bxg7 {[%clk 0:46:14]}  Kxg7 {[%clk 0:55:57]}
16. Rfd1 {[%clk 0:40:27]}  Qf6 {[%clk 0:32:13]} 17. Bxd5 {[%clk 0:37:33]}  Bg4 {[%clk 0:28:43]} 18. Rdc1 {[%clk 0:28:30]}  Rac8 {[%clk 0:25:58]}
19. Qxb7 {[%clk 0:23:09]}  Rb8 {[%clk 0:24:51]} 20. Qxa7 {[%clk 0:23:31]}  Rxb2 {[%clk 0:25:15]} 21. Rab1 {[%clk 0:21:52]}  Rd2 {[%clk 0:24:29]}
22. Bg2 {[%clk 0:18:53]}  Re8 {[%clk 0:22:35]} 23. Re1 {[%clk 0:15:42]}  Rc8 {[%clk 0:22:17]} 24. Rb4 {[%clk 0:14:11]}  Bf5 {[%clk 0:16:28]}
25. Rf4 {[%clk 0:08:50]}  Qc3 {[%clk 0:13:40]} 26. h4 {[%clk 0:07:41]}  Rxa2 {[%clk 0:12:05]} 27. Qxa2 {[%clk 0:07:58]}  Qxe1+ {[%clk 0:12:29]}
28. Kh2 {[%clk 0:08:25]}  h5 {[%clk 0:10:13]} 29. Qb2+ {[%clk 0:08:07]}  Qc3 {[%clk 0:08:39]} 30. Qb7 {[%clk 0:02:59]}  Rc7 {[%clk 0:08:46]}
31. Qb6 {[%clk 0:01:02]}  Qc5 {[%clk 0:08:09]} 1/2-1/2

[Event "2026 European Womens Championship"]
[Site "Batumi, GE"]
[Date "2026.06.03"]
[Round "9"]
[White "Antova, Gabriela"]
[Black "Charkhalashvili, Inga"]
[Result "1/2-1/2"]
[Board "35"]
[TimeControl "5400+30"]
[WhiteFideId "2915235"]
[BlackFideId "13601431"]
[WhiteElo "2203"]
[BlackElo "2235"]
[WhiteTitle "WGM"]
[BlackTitle "WGM"]
[WhiteClock "0:12:50"]
[BlackClock "0:05:03"]
[Variant "Standard"]

1. e4 {[%clk 1:30:54]}  c6 {[%clk 1:30:25]} 2. d4 {[%clk 1:31:12]}  d5 {[%clk 1:30:50]} 3. f3 {[%clk 1:31:31]}  e6 {[%clk 1:31:05]}
4. Nc3 {[%clk 1:31:47]}  Bb4 {[%clk 1:29:29]} 5. a3 {[%clk 1:31:29]}  Bxc3+ {[%clk 1:24:16]} 6. bxc3 {[%clk 1:31:49]}  dxe4 {[%clk 1:24:42]}
7. a4 {[%clk 1:31:29]}  Nd7 {[%clk 1:22:57]} 8. Ba3 {[%clk 1:28:58]}  Qg5 {[%clk 1:21:36]} 9. Qe2 {[%clk 1:26:48]}  Ngf6 {[%clk 1:21:08]}
10. fxe4 {[%clk 1:06:23]}  Qh4+ {[%clk 1:21:24]} 11. g3 {[%clk 1:06:47]}  Qxe4 {[%clk 1:20:29]} 12. Bg2 {[%clk 1:07:10]}  Qxe2+ {[%clk 1:20:04]}
13. Kxe2 {[%clk 1:07:30]}  b6 {[%clk 1:10:51]} 14. Bxc6 {[%clk 1:00:16]}  Ba6+ {[%clk 1:11:16]} 15. Kd2 {[%clk 0:56:28]}  Rc8 {[%clk 1:11:37]}
16. Bg2 {[%clk 0:52:02]}  Bc4 {[%clk 1:10:19]} 17. Ne2 {[%clk 0:34:49]}  Nd5 {[%clk 1:01:11]} 18. Rhe1 {[%clk 0:30:34]}  N7f6 {[%clk 0:58:45]}
19. Nf4 {[%clk 0:28:47]}  Kd7 {[%clk 0:57:12]} 20. a5 {[%clk 0:26:54]}  Nxf4 {[%clk 0:53:32]} 21. gxf4 {[%clk 0:27:17]}  Bd5 {[%clk 0:53:34]}
22. Bxd5 {[%clk 0:27:04]}  Nxd5 {[%clk 0:53:53]} 23. axb6 {[%clk 0:27:20]}  axb6 {[%clk 0:54:16]} 24. f5 {[%clk 0:20:38]}  Rxc3 {[%clk 0:50:47]}
25. fxe6+ {[%clk 0:20:59]}  fxe6 {[%clk 0:51:14]} 26. Rf1 {[%clk 0:19:28]}  Ra8 {[%clk 0:49:51]} 27. Bf8 {[%clk 0:14:59]}  Rxa1 {[%clk 0:45:19]}
28. Rxa1 {[%clk 0:15:24]}  Rh3 {[%clk 0:44:47]} 29. Ra7+ {[%clk 0:13:31]}  Kc6 {[%clk 0:44:17]} 30. Rxg7 {[%clk 0:09:38]}  Rxh2+ {[%clk 0:43:53]}
31. Kd3 {[%clk 0:09:44]}  Rh3+ {[%clk 0:36:20]} 32. Kd2 {[%clk 0:09:21]}  Ne3 {[%clk 0:33:46]} 33. Rg5 {[%clk 0:08:07]}  Nf5 {[%clk 0:33:11]}
34. Bg7 {[%clk 0:05:57]}  Kd5 {[%clk 0:30:16]} 35. Bh8 {[%clk 0:04:22]}  h5 {[%clk 0:25:55]} 36. Rg8 {[%clk 0:04:21]}  Ne3 {[%clk 0:19:36]}
37. Rg5+ {[%clk 0:04:17]}  Nf5 {[%clk 0:17:25]} 38. Rg8 {[%clk 0:04:41]}  h4 {[%clk 0:15:00]} 39. Rb8 {[%clk 0:02:12]}  Ne3 {[%clk 0:14:35]}
40. Kc3 {[%clk 0:00:35]}  Ke4 {[%clk 0:12:14]} 41. Kb3 {[%clk 0:23:37]}  Nd1+ {[%clk 0:33:07]} 42. Kb4 {[%clk 0:21:56]}  Nc3 {[%clk 0:33:10]}
43. Be5 {[%clk 0:16:23]}  Nd5+ {[%clk 0:30:35]} 44. Kb5 {[%clk 0:16:45]}  Rc3 {[%clk 0:30:19]} 45. Rh8 {[%clk 0:17:07]}  h3 {[%clk 0:29:53]}
46. Rh4+ {[%clk 0:16:40]}  Kf5 {[%clk 0:30:14]} 47. Rh6 {[%clk 0:16:56]}  Rxc2 {[%clk 0:23:15]} 48. Rxh3 {[%clk 0:17:03]}  Rc1 {[%clk 0:15:48]}
49. Rh8 {[%clk 0:16:21]}  Rc2 {[%clk 0:12:35]} 50. Rf8 {[%clk 0:14:30]}  Ke4 {[%clk 0:12:43]} 51. Re8 {[%clk 0:14:39]}  Kf5 {[%clk 0:08:41]}
52. Rf8 {[%clk 0:15:00]}  Kg6 {[%clk 0:08:34]} 53. Rf3 {[%clk 0:13:36]}  Rc8 {[%clk 0:08:09]} 54. Rf1 {[%clk 0:12:22]}  Kg5 {[%clk 0:07:13]}
55. Rf7 {[%clk 0:12:18]}  Kg6 {[%clk 0:05:12]} 56. Rf3 {[%clk 0:12:31]}  Rc1 {[%clk 0:05:15]} 57. Rf8 {[%clk 0:12:42]}  Rc2 {[%clk 0:05:03]}
58. Rf3 {[%clk 0:12:50]} 1/2-1/2

[Event "2026 European Womens Championship"]
[Site "Batumi, GE"]
[Date "2026.06.03"]
[Round "9"]
[White "Chernyak, Viktoria"]
[Black "Rapport, Jovana"]
[Result "1/2-1/2"]
[Board "36"]
[TimeControl "5400+30"]
[WhiteFideId "24165956"]
[BlackFideId "937266"]
[WhiteElo "2191"]
[BlackElo "2235"]
[WhiteTitle "WGM"]
[BlackTitle "WGM"]
[WhiteClock "0:05:09"]
[BlackClock "0:39:22"]
[Variant "Standard"]

1. d4 {[%clk 1:30:59]}  f5 {[%clk 1:30:55]} 2. c4 {[%clk 1:31:17]}  Nf6 {[%clk 1:31:19]} 3. g3 {[%clk 1:31:40]}  g6 {[%clk 1:31:38]}
4. Bg2 {[%clk 1:32:00]}  Bg7 {[%clk 1:32:02]} 5. Nc3 {[%clk 1:31:52]}  O-O {[%clk 1:32:01]} 6. Qc2 {[%clk 1:26:27]}  d6 {[%clk 1:27:39]}
7. Nf3 {[%clk 1:26:15]}  Qe8 {[%clk 1:27:02]} 8. d5 {[%clk 1:22:04]}  Na6 {[%clk 1:26:51]} 9. O-O {[%clk 1:21:26]}  Nc5 {[%clk 1:26:35]}
10. b4 {[%clk 1:19:48]}  Nfe4 {[%clk 1:21:31]} 11. Bb2 {[%clk 1:13:49]}  Bxc3 {[%clk 1:19:38]} 12. Bxc3 {[%clk 1:13:40]}  Nxc3 {[%clk 1:19:58]}
13. Qxc3 {[%clk 1:11:06]}  Ne4 {[%clk 1:20:23]} 14. Qe3 {[%clk 1:08:22]}  e5 {[%clk 1:20:02]} 15. dxe6 {[%clk 1:07:16]}  Bxe6 {[%clk 1:20:26]}
16. Nd2 {[%clk 0:54:25]}  Nxd2 {[%clk 1:12:50]} 17. Qxd2 {[%clk 0:54:53]}  Rb8 {[%clk 1:12:38]} 18. Rac1 {[%clk 0:54:36]}  Qf7 {[%clk 1:11:26]}
19. a3 {[%clk 0:51:47]}  a6 {[%clk 1:07:52]} 20. Rc3 {[%clk 0:50:10]}  Kg7 {[%clk 1:08:05]} 21. Rd1 {[%clk 0:46:30]}  Rfd8 {[%clk 1:01:25]}
22. h4 {[%clk 0:44:50]}  Qf6 {[%clk 0:59:46]} 23. e3 {[%clk 0:42:55]}  h6 {[%clk 0:48:32]} 24. Qd4 {[%clk 0:35:21]}  b6 {[%clk 0:42:43]}
25. Bc6 {[%clk 0:24:12]}  Qxd4 {[%clk 0:42:20]} 26. Rxd4 {[%clk 0:24:12]}  g5 {[%clk 0:42:43]} 27. Rc1 {[%clk 0:18:16]}  Kf6 {[%clk 0:42:56]}
28. Kg2 {[%clk 0:16:34]}  Rh8 {[%clk 0:40:39]} 29. Rh1 {[%clk 0:14:10]}  Rbd8 {[%clk 0:40:56]} 30. Rhd1 {[%clk 0:12:09]}  Ke7 {[%clk 0:39:42]}
31. R1d2 {[%clk 0:06:23]}  Rhf8 {[%clk 0:39:22]} 32. Kf3 {[%clk 0:05:09]} 1/2-1/2

[Event "2026 European Womens Championship"]
[Site "Batumi, GE"]
[Date "2026.06.03"]
[Round "9"]
[White "Nadanyan, Kiti"]
[Black "Piddubna, Bozhena"]
[Result "0-1"]
[Board "37"]
[TimeControl "5400+30"]
[WhiteFideId "13316710"]
[BlackFideId "34109293"]
[WhiteElo "1801"]
[BlackElo "2235"]
[BlackTitle "WIM"]
[WhiteClock "0:11:41"]
[BlackClock "0:31:41"]
[Variant "Standard"]

1. e4 {[%clk 1:30:55]}  e5 {[%clk 1:30:45]} 2. Nf3 {[%clk 1:31:14]}  Nc6 {[%clk 1:31:01]} 3. Bb5 {[%clk 1:31:36]}  a6 {[%clk 1:31:16]}
4. Bxc6 {[%clk 1:31:37]}  dxc6 {[%clk 1:31:13]} 5. Nc3 {[%clk 1:31:05]}  f6 {[%clk 1:31:01]} 6. d4 {[%clk 1:31:18]}  exd4 {[%clk 1:30:40]}
7. Qxd4 {[%clk 1:31:21]}  Qxd4 {[%clk 1:30:32]} 8. Nxd4 {[%clk 1:31:45]}  Bd7 {[%clk 1:30:51]} 9. f3 {[%clk 1:31:01]}  h5 {[%clk 1:29:37]}
10. h4 {[%clk 1:29:31]}  Ne7 {[%clk 1:27:39]} 11. Be3 {[%clk 1:07:34]}  O-O-O {[%clk 1:27:51]} 12. Nde2 {[%clk 1:04:19]}  Ng6 {[%clk 1:26:16]}
13. Rd1 {[%clk 1:00:06]}  Re8 {[%clk 1:22:48]} 14. Kf2 {[%clk 0:59:24]}  Be6 {[%clk 1:16:50]} 15. b3 {[%clk 0:47:47]}  Bf7 {[%clk 1:13:30]}
16. Na4 {[%clk 0:43:16]}  b6 {[%clk 1:12:09]} 17. Nb2 {[%clk 0:42:23]}  a5 {[%clk 1:05:17]} 18. Rd2 {[%clk 0:39:23]}  Be6 {[%clk 0:57:41]}
19. Nd3 {[%clk 0:30:51]}  Be7 {[%clk 0:46:57]} 20. Nd4 {[%clk 0:27:13]}  Bd7 {[%clk 0:46:58]} 21. Nf5 {[%clk 0:27:25]}  Bf8 {[%clk 0:45:12]}
22. c3 {[%clk 0:15:50]}  Rh7 {[%clk 0:33:07]} 23. g3 {[%clk 0:15:53]}  c5 {[%clk 0:27:12]} 24. c4 {[%clk 0:15:51]}  Nh8 {[%clk 0:25:24]}
25. Bf4 {[%clk 0:14:37]}  Nf7 {[%clk 0:25:25]} 26. Ne3 {[%clk 0:10:24]}  c6 {[%clk 0:20:44]} 27. Nd1 {[%clk 0:03:17]}  g5 {[%clk 0:21:07]}
28. Be3 {[%clk 0:02:08]}  g4 {[%clk 0:21:13]} 29. Nc3 {[%clk 0:02:33]}  gxf3 {[%clk 0:20:08]} 30. Na4 {[%clk 0:02:55]}  Kc7 {[%clk 0:15:34]}
31. Bf4+ {[%clk 0:01:16]}  Bd6 {[%clk 0:14:46]} 32. Rhd1 {[%clk 0:00:39]}  Rxe4 {[%clk 0:10:43]} 33. Bxd6+ {[%clk 0:00:54]}  Nxd6 {[%clk 0:11:10]}
34. Ndxc5 {[%clk 0:00:32]}  bxc5 {[%clk 0:09:51]} 35. Rxd6 {[%clk 0:00:58]}  Re2+ {[%clk 0:10:03]} 36. Kg1 {[%clk 0:00:33]}  f2+ {[%clk 0:07:49]}
37. Kf1 {[%clk 0:00:32]}  Bh3+ {[%clk 0:07:41]} 38. Kxe2 {[%clk 0:00:33]}  f1=Q+ {[%clk 0:07:34]} 39. Rxf1 {[%clk 0:00:59]}  Bxf1+ {[%clk 0:08:31]}
40. Kxf1 {[%clk 0:01:25]}  Kxd6 {[%clk 0:08:57]} 41. Kf2 {[%clk 0:01:28]}  Re7 {[%clk 0:07:24]} 42. Nc3 {[%clk 0:27:14]}  Ke5 {[%clk 0:36:56]}
43. Ne2 {[%clk 0:22:07]}  Rd7 {[%clk 0:32:04]} 44. Ke3 {[%clk 0:18:34]}  Kf5 {[%clk 0:31:59]} 45. Nc3 {[%clk 0:13:26]}  Kg4 {[%clk 0:32:05]}
46. Kf2 {[%clk 0:13:20]}  f5 {[%clk 0:31:41]} 47. Ke3 {[%clk 0:11:41]} 0-1